[Event "FIDE WSTC Open 50 2025"]
[Site "Prague"]
[Date "2025.02.21"]
[Round "5.38"]
[White "Burnett, Andrew"]
[Black "Tsodikova, Natalia"]
[Result "1/2-1/2"]
[Annotator "ChessBase"]
[ECO "E73"]
[WhiteElo "2147"]
[BlackElo "2051"]
[PlyCount "79"]
[EventDate "2025.02.17"]
[EventType "team-tourn"]
[EventCountry "CZE"]
[SourceTitle "playchess.com"]
[Source "ChessBase"]
[SourceQuality "1"]
[TimeControl "40/5400+30:1800+30"]

1. d4 {[%emt 0:00:06]} Nf6 {[%emt 0:00:08]} 2. c4 {[%emt 0:00:11]} g6 {[%emt 0:00:09]} 3. Nc3 {[%emt 0:00:09]} Bg7 {[%emt 0:00:06]} 4. e4 {[%emt 0:00:21]} d6 {[%emt 0:00:11]} 5. Be2 {[%emt 0:00:12]} O-O {[%emt 0:00:24]} 6. Be3 {[%emt 0:01:47]} c5 {[%emt 0:01:18]} 7. d5 {[%emt 0:00:08]} e6 {[%emt 0:00:37]} 8. Nf3 {[%emt 0:00:09]} exd5 {[%emt 0:00:31]} 9. cxd5 {[%emt 0:00:06]} Bg4 {[%emt 0:01:05]} 10. Nd2 {[%emt 0:00:22]} Bxe2 {[%emt 0:00:33]} 11. Qxe2 {[%emt 0:00:06]} Re8 {[%emt 0:01:13]} 12. O-O {[%emt 0:00:40]} Nbd7 {[%emt 0:02:09]} 13. h3 {[%emt 0:06:25]} a6 {[%emt 0:01:48]} 14. a4 {[%emt 0:00:39]} Rb8 {[%emt 0:09:04]} 15. a5 {[%emt 0:05:42]} Qc7 {[%emt 0:03:09]} 16. Kh1 {[%emt 0:02:32]} Rbc8 {[%emt 0:05:12]} 17. f4 {[%emt 0:06:25]} Re7 {[%emt 0:15:02]} 18. Qf3 {[%emt 0:04:29]} Ne8 {[%emt 0:09:24]} 19. Nc4 {[%emt 0:09:44]} b5 {[%emt 0:04:59]} 20. axb6 {[%emt 0:00:20]} Nxb6 {[%emt 0:00:15]} 21. Nd2 {[%emt 0:08:44]} Qb7 {[%emt 0:03:20]} 22. Qe2 {[%emt 0:04:33]} Nc7 {[%emt 0:05:44]} 23. Bxc5 {[%emt 0:04:48]} dxc5 {[%emt 0:07:35]} 24. d6 {[%emt 0:00:09]} Rd7 {[%emt 0:04:17]} 25. dxc7 {[%emt 0:00:21]} Rcxc7 {[%emt 0:00:41]} 26. e5 {[%emt 0:00:49]} Rd4 {[%emt 0:03:40]} 27. Nde4 {[%emt 0:03:39]} Nc4 {[%emt 0:02:21]} 28. b3 {[%emt 0:02:16]} Nb6 {[%emt 0:02:04]} 29. Qxa6 {[%emt 0:06:13]} Bf8 {[%emt 0:03:04]} 30. Nf6+ {[%emt 0:01:45]} Kh8 {[%emt 0:01:33]} 31. Nb5 {[%emt 0:01:22]} Rd2 {[%emt 0:00:44]} 32. Rg1 {[%emt 0:00:07]} Qxa6 {[%emt 0:01:44]} 33. Rxa6 {[%emt 0:00:08]} Rb7 {[%emt 0:00:08]} 34. Rc1 {[%emt 0:03:25]} Rd3 {[%emt 0:04:33]} 35. Ne8 {[%emt 0:01:42]} Nc8 {[%emt 0:03:51]} 36. Nec7 {[%emt 0:05:35]} Rd7 {[%emt 0:01:44]} 37. b4 {[%emt 0:05:43]} Rdxc7 {[%emt 0:01:51]} 38. Nxc7 {[%emt 0:00:10]} Rxc7 {[%emt 0:00:02]} 39. bxc5 {[%emt 0:00:08]} Kg7 {[%emt 0:00:44]} 40. g4 {[%emt 0:01:06]} 1/2-1/2

[Event "FIDE WSTC Open 50 2025"]
[Site "Prague"]
[Date "2025.02.21"]
[Round "5.40"]
[White "Minnican, Alan"]
[Black "Root, Alexey"]
[Result "1-0"]
[Annotator "NA"]
[ECO "A01"]
[WhiteElo "2039"]
[BlackElo "1888"]
[PlyCount "93"]
[EventDate "2025.02.17"]
[EventType "team-tourn"]
[EventCountry "CZE"]
[SourceTitle "playchess.com"]
[Source "ChessBase"]
[SourceQuality "1"]
[TimeControl "40/5400+30:1800+30"]

1. b3 {[%emt 0:00:13]} g6 {[%emt 0:01:05]} 2. Bb2 {[%emt 0:00:25]} Nf6 {[%emt 0:00:04]} 3. Nf3 {[%emt 0:01:19]} Bg7 {[%emt 0:00:18]} 4. g3 {[%emt 0:00:12]} O-O {[%emt 0:00:49]} 5. c4 {[%emt 0:00:18]} d6 {[%emt 0:03:33]} 6. Bg2 {[%emt 0:01:02]} e5 {[%emt 0:00:21]} 7. O-O {[%emt 0:05:03]} c5 {[%emt 0:02:49]} 8. Nc3 {[%emt 0:07:10]} Nc6 {[%emt 0:01:05]} 9. e3 {[%emt 0:04:29]} Nh5 {[%emt 0:09:09]} 10. Ne1 {[%emt 0:08:03]} f5 {[%emt 0:03:37]} 11. f4 {[%emt 0:02:30]} Nf6 {[%emt 0:08:46]} 12. Nc2 {[%emt 0:06:44]} Nb4 {[%emt 0:06:59]} 13. Nxb4 {[%emt 0:02:50]} cxb4 {[%emt 0:01:42]} 14. Nd5 {[%emt 0:00:26]} Nxd5 {[%emt 0:01:44]} 15. Bxd5+ {[%emt 0:00:28]} Kh8 {[%emt 0:00:10]} 16. a3 {[%emt 0:08:35]} bxa3 {[%emt 0:01:30]} 17. Rxa3 {[%emt 0:00:13]} exf4 {[%emt 0:04:49]} 18. Bxg7+ {[%emt 0:02:04]} Kxg7 {[%emt 0:00:04]} 19. Qa1+ {[%emt 0:00:49]} Qf6 {[%emt 0:00:29]} 20. Qxf6+ {[%emt 0:00:23]} Kxf6 {[%emt 0:01:17]} 21. gxf4 {[%emt 0:00:56]} a6 {[%emt 0:05:15]} 22. Ra4 {[%emt 0:06:36]} Rb8 {[%emt 0:02:54]} 23. Rb4 {[%emt 0:12:40]} b6 {[%emt 0:01:09]} 24. Ra1 {[%emt 0:02:35]} g5 {[%emt 0:01:27]} 25. fxg5+ {[%emt 0:01:15]} Kxg5 {[%emt 0:00:04]} 26. Kf2 {[%emt 0:00:32]} f4 {[%emt 0:06:03]} 27. e4 {[%emt 0:03:03]} Kh4 {[%emt 0:02:02]} 28. d4 {[%emt 0:07:24]} Rf6 {[%emt 0:06:22]} 29. e5 {[%emt 0:04:37]} dxe5 {[%emt 0:00:41]} 30. dxe5 {[%emt 0:00:06]} Rf5 {[%emt 0:01:48]} 31. e6 {[%emt 0:02:48]} Re5 {[%emt 0:03:04]} 32. Re1 {[%emt 0:00:24]} Rxe1 {[%emt 0:00:36]} 33. Kxe1 {[%emt 0:00:02]} a5 {[%emt 0:03:30]} 34. Rb5 {[%emt 0:04:07]} Ba6 {[%emt 0:05:57]} 35. Bc6 {[%emt 0:00:20]} Bxb5 {[%emt 0:00:57]} 36. cxb5 {[%emt 0:00:24]} Kh3 {[%emt 0:02:47]} 37. e7 {[%emt 0:01:39]} Kxh2 {[%emt 0:00:10]} 38. Kf2 {[%emt 0:00:07]} h5 {[%emt 0:03:13]} 39. e8=Q {[%emt 0:00:26]} Rxe8 {[%emt 0:00:04]} 40. Bxe8 {[%emt 0:00:10]} h4 {[%emt 0:00:08]} 41. Kf3 {[%emt 0:30:31]} Kg1 {[%emt 0:30:38]} 42. Kxf4 {[%emt 0:00:28]} Kf2 {[%emt 0:00:30]} 43. Ke5 {[%emt 0:01:00]} Ke3 {[%emt 0:00:45]} 44. Bc6 {[%emt 0:00:00]} Kd3 {[%emt 0:00:00]} 45. Bd5 {[%emt 0:00:00]} Kc3 {[%emt 0:00:00]} 46. Kd6 {[%emt 0:00:00]} Kb4 {[%emt 0:00:00]} 47. Kc6 {[%emt 0:00:00]} 1-0

[Event "FIDE WSTC Open 50 2025"]
[Site "Prague"]
[Date "2025.02.23"]
[Round "6.1"]
[White "David, Alberto"]
[Black "Ftacnik, Lubomir"]
[Result "1/2-1/2"]
[Annotator "TA"]
[ECO "D72"]
[WhiteElo "2467"]
[BlackElo "2438"]
[PlyCount "105"]
[EventDate "2025.02.17"]
[EventType "team-tourn"]
[EventCountry "CZE"]
[SourceTitle "playchess.com"]
[Source "ChessBase"]
[SourceQuality "1"]
[TimeControl "40/5400+30:1800+30"]

{[%evp 23,105,4,13,13,0,32,81,96,64,92,77,79,85,77,108,137,132,112,97,94,122,132,114,46,86,92,84,67,70,65,47,37,182,185,252,238,213,205,265,110,124,108,223,212,219,178,193,55,57,54,44,0,0,0,6,0,52,8,86,95,71,63,46,48,98,80,249,255,311,317,362,347,271,54,65,47,67,68,122,119,123,116,112,41]} 1. d4 {[%emt 0:00:10]} Nf6 {[%emt 0:00:10]} 2. c4 {[%emt 0:00:09]} g6 {[%emt 0:00:18]} 3. g3 {[%emt 0:00:19]} Bg7 {[%emt 0:01:14]} 4. Bg2 {[%emt 0:00:23]} d5 {[%emt 0:00:23]} 5. cxd5 {[%emt 0:00:07]} Nxd5 {[%emt 0:00:10]} 6. e4 {[%emt 0:00:14]} Nb6 {[%emt 0:06:36]} 7. Ne2 {[%emt 0:00:30]} c5 {[%emt 0:00:10]} 8. d5 {[%emt 0:00:32]} e6 {[%emt 0:00:24]} 9. O-O {[%emt 0:01:06]} O-O {[%emt 0:02:25]} 10. Nec3 {[%emt 0:00:59]} Na6 {[%emt 0:01:48]} 11. a4 {[%emt 0:01:07][%cal Ba2a4,Ba4a5][%mdl 32]} exd5 {[%emt 0:01:04]} 12. exd5 {[%emt 0:00:17]} Bf5 {[%emt 0:05:52]} 13. g4 {[%emt 0:02:57] D72: Fianchetto Grünfeld: 5 cxd5 Nxd5 6 e4 Nb6 (without Nf3).} Bd7 {[%emt 0:02:07]} 14. Nd2 {[%emt 0:07:15]} Nb4 {[%emt 0:05:01]} (14... Qh4 $14) 15. a5 $16 {[%emt 0:17:23]} Nc8 {[%emt 0:00:39]} 16. Nde4 {[%emt 0:00:09] Repels Nd6} c4 {[%emt 0:07:54]} 17. Bg5 {[%emt 0:18:06]} f6 {[%emt 0:00:35]} 18. Be3 $146 {[%emt 0:00:08]} (18. Bh4 Nd3 19. b3 Nf4 20. bxc4 Nxg2 21. Kxg2 Qc7 22. Qd4 Bxg4 23. f3 Bf5 24. Bxf6 Rxf6 25. Nxf6+ {1-0 Jarmula,L (2445)-Licznerski,L (2360) Gora Sw Anny op 13th 2020 (2)}) 18... Nd3 {[%emt 0:03:53]} 19. Nc5 $1 {[%emt 0:01:55]} Nd6 {[%emt 0:12:16]} 20. Nxd3 {[%emt 0:07:03]} cxd3 {[%emt 0:00:02]} 21. Bf4 {[%emt 0:00:32]} Nf7 {[%emt 0:10:47]} 22. Qxd3 {[%emt 0:05:09]} Bxg4 {[%emt 0:02:09]} 23. Qg3 {[%emt 0:01:26]} (23. d6 $16) 23... Qd7 {[%emt 0:06:35]} 24. Ne4 $36 {[%emt 0:05:58][%mdl 2048] Black is under strong pressure.} Rac8 {[%emt 0:09:00][%cal Of6f5]} 25. Be3 {[%emt 0:01:49]} b6 {[%emt 0:02:31] Wards off Nc5} 26. axb6 {[%emt 0:01:51]} axb6 {[%emt 0:00:01]} 27. Bd4 {[%emt 0:19:07]} (27. Bxb6 {with more complications.} Bf5 28. Ra7 Qb5 29. Bd4) 27... Nh6 {[%emt 0:00:40]} (27... f5 $14 28. Nf6+ (28. Bxb6 $2 fxe4 29. Qe3 Rfe8 $19) 28... Bxf6 29. Bxf6 Nd6) 28. Bxb6 $18 {[%emt 0:01:54]} Be2 {[%emt 0:06:19]} (28... Qb5 $142) 29. Rfe1 $1 {[%emt 0:01:14]} Nf5 {[%emt 0:02:10]} 30. Qa3 {[%emt 0:01:17]} Bc4 {[%emt 0:04:55]} 31. Nc5 {[%emt 0:01:58]} (31. d6 $18 {and White stays clearly on top.}) 31... Qb5 $16 {[%emt 0:00:39]} 32. Qa5 {[%emt 0:00:24]} Qxb2 {[%emt 0:01:21]} (32... Qxa5 $16 33. Rxa5 Rfe8) 33. Rab1 {[%emt 0:02:01]} Qa2 {[%emt 0:01:07]} 34. Qxa2 {[%emt 0:00:27]} Bxa2 {[%emt 0:00:01]} 35. Rb2 {[%emt 0:00:09]} (35. Rbd1 $1 $18) 35... Bc4 $14 {[%emt 0:00:12]} 36. Rb4 {[%emt 0:00:45][%cal Bb2b4,Bb4a4,Ba4a7][%mdl 32]} Nd6 {[%emt 0:01:08]} 37. h4 {[%emt 0:01:22]} f5 {[%emt 0:02:29] Threatens to win with ...Bc3.} 38. Re6 {[%emt 0:00:43]} Rfe8 {[%emt 0:00:16]} 39. Bf3 {[%emt 0:00:29]} (39. Rxd6 Re1+ 40. Kh2 Be5+ 41. Kh3 Bxd6 42. Rxc4 Rb1 $17) 39... Bf8 {[%emt 0:01:24]} (39... Bc3 $11 40. Rb1 Rxe6 41. dxe6 Kg7) 40. Kg2 {[%emt 0:00:28]} Ba2 {[%emt 0:01:24] [#]} (40... Rxe6 $1 $11 {remains equal.} 41. Nxe6 Ne4 42. Nxf8 Kxf8) 41. Ra4 $1 $16 {[%emt 0:06:04]} Bb1 {[%emt 0:03:45]} 42. Nd7 {[%emt 0:06:39] White has more active pieces.} Rxe6 {[%emt 0:20:08]} 43. dxe6 {[%emt 0:00:05]} Ne4 {[%emt 0:00:20] Against Bc5} (43... Bg7 $14) 44. Ra7 {[%emt 0:08:34]} Be7 $2 {[%emt 0:01:13]} (44... Bg7 $16 {was necessary.}) 45. Bd4 $18 {[%emt 0:02:22]} Re8 {[%emt 0:01:43]} 46. Bd1 {[%emt 0:02:27] Repels Bc2} Bd3 {[%emt 0:02:47]} 47. Ba4 {[%emt 0:01:55] Wards off Bb5} Nd6 {[%emt 0:01:06]} 48. Nb6 $2 {[%emt 0:04:21]} (48. Bc5 $18 {and Bxd6 would now be decisive} Ne4 49. Bxe7 Rxe7 50. Nf6+ Nxf6 51. Rxe7 Be4+ 52. Kg1) 48... Nb5 $14 {[%emt 0:01:16]} 49. Ra5 {[%emt 0:01:52]} Nxd4 {[%emt 0:01:53]} 50. Bxe8 {[%emt 0:00:06]} Nxe6 {[%emt 0:00:10] [#]} ({Black should try} 50... Be4+ $14 51. Kg1 Bd8) 51. Re5 $1 $16 {[%emt 0:00:44] White is better.} Nf4+ {[%emt 0:00:22]} 52. Kf3 {[%emt 0:00:21]} Bd8 {[%emt 0:01:17]} 53. Kxf4 {Weighted Error Value: White=0.24 (precise) /Black=0.30  Loses game:     	---       	Black=1      Missed win:     	White=1     	---        Mistake:       	White=4     	Black=8      Inaccurate:     	White=2     	Black=2      OK:         	White=15    	Black=12     Best:        	White=3     	Black=4      Strong:       	White=4     	---} ({Better is} 53. Nd7 $16 Nh5 54. Nc5) 1/2-1/2

[Event "FIDE WSTC Open 50 2025"]
[Site "Prague"]
[Date "2025.02.23"]
[Round "6.2"]
[White "Mrva, Martin"]
[Black "Godena, Michele"]
[Result "1/2-1/2"]
[Annotator "TA"]
[ECO "C70"]
[WhiteElo "2394"]
[BlackElo "2439"]
[PlyCount "46"]
[EventDate "2025.02.17"]
[EventType "team-tourn"]
[EventCountry "CZE"]
[SourceTitle "playchess.com"]
[Source "ChessBase"]
[SourceQuality "1"]
[TimeControl "40/5400+30:1800+30"]

{[%evp 9,46,14,47,33,54,38,50,49,45,53,49,46,75,64,76,48,75,50,53,33,62,0,42,0,30,22,35,0,-1,-22,-17,-27,-12,-11,-10,-23,-10,-25,-8]} 1. e4 {[%emt 0:00:04]} e5 {[%emt 0:00:07]} 2. Nf3 {[%emt 0:00:12]} Nc6 {[%emt 0:00:08]} 3. Bb5 {[%emt 0:00:11][%cal Bf1b5,Bb5a4,Ba4b3,Bb3d5][%mdl 32]} a6 {[%emt 0:01:34]} 4. Ba4 {[%emt 0:00:05]} Bc5 {[%emt 0:01:27]} 5. O-O {[%emt 0:00:52]} Qf6 {[%emt 0:19:18]} 6. d3 {[%emt 0:26:48] C70: Ruy Lopez: 3...a6 4 Ba4, Norwegian and Delayed Schliemann.} b5 {[%emt 0:26:36]} 7. Bb3 {[%emt 0:00:14]} Nge7 {[%emt 0:00:17]} 8. Nc3 {[%emt 0:11:29] White is slightly better.} d6 {[%emt 0:09:29]} 9. Nd5 {[%emt 0:08:25]} Nxd5 {[%emt 0:00:08]} 10. Bxd5 {[%emt 0:00:05]} Bb7 {[%emt 0:07:29]} 11. c3 $146 {[%emt 0:11:39][%cal Od3d4]} (11. Be3 Rb8 12. Bxc6+ Bxc6 13. Qd2 Bb6 14. h3 h6 15. Nh2 g5 16. c3 Qg6 17. Bxb6 Rxb6 {½-½ Garcia Ruano,J (1934)-Sanchez Lopez,D (1978) Almansa op-B 4th 2009 (9)}) 11... Rb8 {[%emt 0:04:03]} 12. a4 {[%emt 0:16:29]} O-O {[%emt 0:03:02]} 13. axb5 {[%emt 0:09:45]} axb5 {[%emt 0:00:07]} 14. Qb3 {[%emt 0:00:32]} b4 {[%emt 0:03:53]} 15. Qc4 {[%emt 0:03:07] White is more active.} (15. Bg5 $14 Qg6 16. Kh1) 15... bxc3 {[%emt 0:03:06]} 16. bxc3 {[%emt 0:00:12]} Nd8 {[%emt 0:00:44] Threatens to win with ...c6.} 17. Bxb7 {[%emt 0:02:37]} Rxb7 {[%emt 0:02:33]} 18. Bg5 {[%emt 0:02:54]} Qe6 {[%emt 0:00:47]} 19. Qd5 {[%emt 0:00:33]} c6 {[%emt 0:05:13]} 20. Qa2 {[%emt 0:00:09]} Qxa2 {[%emt 0:00:31]} 21. Rxa2 {[%emt 0:00:02]} Ne6 {[%emt 0:00:10]} 22. Bd2 {[%emt 0:01:06]} Rfb8 {[%emt 0:04:27]} 23. g3 {[%emt 0:00:05]} Kf8 {[%emt 0:02:15] Weighted Error Value: White=0.19 (very precise) /Black=0.17 (very precise)   Mistake:       	White=1     	---        Inaccurate:     	White=3     	Black=5      OK:         	White=3     	Black=4} 1/2-1/2

[Event "FIDE WSTC Open 50 2025"]
[Site "Prague"]
[Date "2025.02.23"]
[Round "6.3"]
[White "Bellini, Fabio"]
[Black "Stohl, Igor"]
[Result "1/2-1/2"]
[Annotator "TA"]
[ECO "C42"]
[WhiteElo "2408"]
[BlackElo "2409"]
[PlyCount "80"]
[EventDate "2025.02.17"]
[EventType "team-tourn"]
[EventCountry "CZE"]
[SourceTitle "playchess.com"]
[Source "ChessBase"]
[SourceQuality "1"]
[TimeControl "40/5400+30:1800+30"]

{[%evp 9,80,12,14,4,23,17,14,10,21,6,26,27,32,18,27,29,34,35,32,27,31,19,39,20,17,18,41,0,7,4,3,-91,-90,-91,-93,-93,-96,-93,-93,-112,-112,-112,-116,-110,-116,-115,-110,-117,-117,-116,-108,-108,-106,-108,-108,-123,-123,-115,-110,-110,-100,-111,-93,-113,-95,-108,-98,-146,-8,-20,0,-146,0]} 1. e4 {[%emt 0:00:04]} e5 {[%emt 0:00:38]} 2. Nf3 {[%emt 0:00:18]} Nf6 {[%emt 0:00:12]} 3. Nxe5 {[%emt 0:01:04][%cal Bf3e5,Be5d3,Bd3f4][%mdl 32]} d6 {[%emt 0:00:22]} 4. Nd3 {[%emt 0:00:25]} Nxe4 {[%emt 0:00:57]} 5. Qe2 {[%emt 0:00:16]} Qe7 $1 {[%emt 0:00:31]} 6. Nf4 {[%emt 0:00:19] C42: Petroff Defence: 3 Nxe5 and unusual White 3rd moves.} Nf6 {[%emt 0:05:54] Against Nd5} 7. d4 {[%emt 0:00:28]} (7. Nc3 {feels hotter.} Nc6 8. Ncd5 Nd4 9. Nxe7 Nxe2 10. Ned5) 7... Qxe2+ {[%emt 0:11:25]} 8. Bxe2 {[%emt 0:01:27] The position is equal.} Bf5 {[%emt 0:00:52]} 9. c3 {[%emt 0:06:05]} Be7 {[%emt 0:09:26]} 10. f3 $146 {[%emt 0:04:51]} ({Predecessor:} 10. O-O O-O 11. f3 Re8 12. g4 Bc8 13. Bd3 c6 14. Na3 d5 15. Nc2 h6 16. Bd2 {½-½ Pichot,A (2579)-Delgado Ramirez,N (2605) American Continental 15th 2019 (9)}) 10... h5 {[%emt 0:01:47]} 11. h4 {[%emt 0:04:30]} Nbd7 {[%emt 0:16:30]} 12. Kf2 {[%emt 0:19:48]} Nf8 {[%emt 0:04:50]} 13. Nd2 {[%emt 0:06:09][%cal Bb1d2,Bd2f1,Bf1g3,Bg3e4,Be4c5][%mdl 32]} Ne6 {[%emt 0:02:33]} 14. Nf1 {[%emt 0:07:23]} Nxf4 {[%emt 0:01:38]} 15. Bxf4 {[%emt 0:00:02]} Nd5 {[%emt 0:01:20]} 16. Bd2 {[%emt 0:01:46]} c6 {[%emt 0:07:34]} 17. Ng3 {[%emt 0:03:00]} Be6 {[%emt 0:01:45]} 18. c4 {[%emt 0:05:01]} Nc7 {[%emt 0:02:04]} 19. Bf4 {[%emt 0:03:10]} O-O-O {[%emt 0:01:59]} 20. Bg5 {[%emt 0:07:10] [#]} (20. Bd3 $11 {remains equal.}) 20... Bxg5 $1 $17 {[%emt 0:03:01]} 21. hxg5 {[%emt 0:00:03]} h4 {[%emt 0:00:45]} 22. Ne4 {[%emt 0:11:47]} d5 {[%emt 0:01:17]} 23. cxd5 {[%emt 0:04:55]} Bxd5 {[%emt 0:00:45]} 24. Nc5 {[%emt 0:02:29]} b6 {[%emt 0:05:59]} 25. Nd3 {[%emt 0:00:42]} Ne6 {[%emt 0:01:05][%csl LRd4,LRg5]} 26. Nb4 {[%emt 0:00:56]} Nxd4 {[%emt 0:02:11]} 27. Nxd5 {[%emt 0:00:18]} Rxd5 {[%emt 0:01:47]} 28. Bc4 {[%emt 0:02:04]} Rxg5 {[%emt 0:01:41]} 29. Bxf7 {[%emt 0:00:49] [#]} h3 $1 {[%emt 0:05:28][%mdl 512]} 30. Rxh3 {[%emt 0:01:23]} Rxh3 {[%emt 0:00:11]} 31. gxh3 {[%emt 0:00:01][%mdl 4096] Endgame KRB-KRN} Rf5 {[%emt 0:00:15][%csl LRf3,LRf7]} 32. Bg8 {[%emt 0:01:33]} Rxf3+ {[%emt 0:00:53]} 33. Kg2 {[%emt 0:00:01]} Rf8 {[%emt 0:00:49]} 34. Bh7 {[%emt 0:00:32]} Re8 {[%emt 0:02:05]} 35. Rf1 {[%emt 0:02:52]} Re2+ {[%emt 0:02:31]} 36. Kg3 {[%emt 0:00:27]} Kd7 {[%emt 0:02:21][%cal Od7e6]} 37. Rf7+ {[%emt 0:00:49]} Re7 {[%emt 0:00:15]} 38. Rf8 {[%emt 0:01:10]} (38. Rxe7+ $142 Kxe7 39. Bg6) 38... Re8 {[%emt 0:00:33]} (38... c5 $17 {Threatening ...a5.} 39. Rf2 Kd6) 39. Rf7+ $1 $11 {[%emt 0:00:33]} Re7 {[%emt 0:00:03]} (39... Kd6 $11) 40. Rf8 $1 $17 {[%emt 0:00:22]} Re8 {[%emt 0:02:50] Weighted Error Value: White=0.11 (very precise) /Black=0.13 (very precise)   Mistake:       	White=2     	Black=3      Inaccurate:     	White=1     	---        OK:         	White=10    	Black=15     Best:        	White=2     	Black=1      Strong:       	White=2     	Black=1} ({Black should play} 40... c5 $17 41. Ra8 a5 42. Ra7+ Kd6 43. Rxe7 Kxe7) 1/2-1/2

[Event "FIDE WSTC Open 50 2025"]
[Site "Prague"]
[Date "2025.02.23"]
[Round "6.4"]
[White "Lipka, Juraj"]
[Black "D'Amore, Carlo"]
[Result "1/2-1/2"]
[Annotator "TA"]
[ECO "D02"]
[WhiteElo "2348"]
[BlackElo "2362"]
[PlyCount "33"]
[EventDate "2025.02.17"]
[EventType "team-tourn"]
[EventCountry "CZE"]
[SourceTitle "playchess.com"]
[Source "ChessBase"]
[SourceQuality "1"]
[TimeControl "40/5400+30:1800+30"]

{[%evp 17,33,14,42,38,48,39,37,37,37,20,22,0,0,3,24,12,0,-23]} 1. d4 {[%emt 0:00:09]} d5 {[%emt 0:00:56]} 2. Nf3 {[%emt 0:00:04]} Nf6 {[%emt 0:00:30]} 3. c3 {[%emt 0:00:07]} e6 {[%emt 0:04:55]} 4. Bf4 {[%emt 0:00:58]} Bd6 {[%emt 0:00:19]} 5. e3 {[%emt 0:01:40]} O-O {[%emt 0:01:02]} 6. Nbd2 {[%emt 0:02:22][%cal Bb1d2,Bd2f3,Bf3e5][%mdl 32]} c5 {[%emt 0:00:21]} 7. Bg3 {[%emt 0:01:41]} Nc6 {[%emt 0:00:54]} 8. Bd3 {[%emt 0:01:22]} Qe7 {[%emt 0:21:16]} 9. Ne5 {[%emt 0:02:07]} Bxe5 {[%emt 0:00:44]} 10. dxe5 {[%emt 0:01:47] D02: 1 d4 d5 2 Nf3 sidelines, including 2...Nf6 3 g3 and 2...Nf6 3 Bf4.} Nd7 {[%emt 0:00:09]} 11. Nf3 {[%emt 0:04:21]} f6 {[%emt 0:03:15]} 12. exf6 {[%emt 0:00:35] White is slightly better.} Nxf6 {[%emt 0:00:07]} 13. c4 {[%emt 0:11:12]} Bd7 {[%emt 0:01:23]} 14. O-O {[%emt 0:05:19]} Be8 {[%emt 0:00:43]} 15. Ne5 $146 {[%emt 0:04:18]} ({Predecessor:} 15. Ng5 Rd8 16. cxd5 Rxd5 17. Nh3 c4 18. Nf4 Rd8 {0-1 Pozanco Romasanta,M (2111)-Van der Lende,I (2332) Barcelona Sants op 17th 2015 (9)}) 15... Rd8 {[%emt 0:03:32] [#] ...Nxe5 would now be deadly.} 16. Qe2 {[%emt 0:13:30]} Nb4 {[%emt 0:25:59]} 17. Bb1 {[%emt 0:15:46] Weighted Error Value: White=0.09 (flawless) /Black=0.05 (flawless)   OK:         	White=3     	Black=4} 1/2-1/2

[Event "FIDE WSTC Open 50 2025"]
[Site "Prague"]
[Date "2025.02.23"]
[Round "6.5"]
[White "Kazhgaleyev, Murtas"]
[Black "Ehlvest, Jaan"]
[Result "1/2-1/2"]
[Annotator "TA"]
[ECO "D28"]
[WhiteElo "2495"]
[BlackElo "2531"]
[PlyCount "43"]
[EventDate "2025.02.17"]
[EventType "team-tourn"]
[EventCountry "CZE"]
[SourceTitle "playchess.com"]
[Source "ChessBase"]
[SourceQuality "1"]
[TimeControl "40/5400+30:1800+30"]

{[%evp 14,43,22,21,28,0,28,-18,45,44,44,35,29,35,34,36,45,16,0,-16,-16,-49,-5,-52,-50,-55,-35,-45,-54,-46,-32,-114]} 1. d4 {[%emt 0:00:07]} d5 {[%emt 0:00:06]} 2. c4 {[%emt 0:00:08]} dxc4 {[%emt 0:00:06]} 3. Nf3 {[%emt 0:00:09]} a6 {[%emt 0:01:18]} 4. e3 {[%emt 0:01:32]} e6 {[%emt 0:01:40]} 5. Bxc4 {[%emt 0:00:08]} c5 {[%emt 0:00:04]} 6. O-O {[%emt 0:00:14]} Nf6 {[%emt 0:00:04]} 7. Qe2 {[%emt 0:04:08]} b5 {[%emt 0:08:30]} 8. Bd3 {[%emt 0:00:37]} cxd4 {[%emt 0:01:07] D28: Queen's Gambit Accepted: Classical main line: 7 Qe2 with early ...Nc6.} 9. a4 {[%emt 0:03:30]} bxa4 {[%emt 0:05:23]} 10. Rxa4 {[%emt 0:00:23]} (10. Rd1 $142) 10... Bb7 {[%emt 0:00:48]} ({Black should try} 10... dxe3 $11 11. Bxe3 Bd7) 11. Rxd4 {[%emt 0:03:45]} Nbd7 {[%emt 0:04:38]} 12. Rd1 {[%emt 0:06:53]} Bc5 {[%emt 0:10:12]} 13. Ra4 {[%emt 0:04:42]} Qc8 $146 {[%emt 0:09:55]} ({Predecessor:} 13... O-O 14. Nc3 Qc8 15. h3 Bxf3 16. gxf3 a5 17. Ne4 Bb4 18. Bd2 Bxd2 19. Qxd2 Qc7 20. f4 {½-½ Goncharenko,G (2490)-Morrow,W (2524) SLO MT-Preinfalk email 2017}) 14. Nbd2 {[%emt 0:07:21]} O-O {[%emt 0:02:56]} 15. Nb3 {[%emt 0:01:41]} Qb8 {[%emt 0:02:39] [#] ...Bxf3 is the strong threat.} 16. Bc2 {[%emt 0:10:28]} Rc8 {[%emt 0:04:55]} 17. e4 {[%emt 0:08:49]} Bc6 {[%emt 0:04:53]} 18. Ra1 {[%emt 0:05:47]} (18. Nxc5 $11 {was preferable.} Nxc5 19. Ra3) 18... Bb5 $15 {[%emt 0:01:53] Black is slightly better.} 19. Bd3 {[%emt 0:03:58]} Bxd3 {[%emt 0:02:07]} 20. Rxd3 {[%emt 0:00:20]} Bf8 {[%emt 0:09:30]} 21. h3 {[%emt 0:07:58]} h6 {[%emt 0:04:37][%cal Oa6a5]} 22. Re3 {[%emt 0:08:36] Weighted Error Value: White=0.16 (very precise) /Black=0.15 (very precise)   Mistake:       	White=3     	Black=1      Inaccurate:     	White=3     	Black=2      OK:         	White=3     	Black=6} (22. Bd2 $15) 1/2-1/2